bitfinex-derivatives/quotes_ETHF0:USTF0_20250116
["timestamp","ask_amount","ask_price","bid_price","bid_amount"]
[1737030072509,3.2078,3359.6,3358.9,4.4738]
[1737030072699,3.2078,3359.6,3359.0,0.35980399]
[1737030072896,0.59549,3359.1,3359.0,0.59549]
[1737030073100,0.59549,3359.1,3359.0,1.33538576]
[1737030073297,0.59547,3359.2,3359.1,0.59547]
[1737030073498,3.2078,3359.6,3359.1,3.10434654]
[1737030073705,0.59545,3359.4,3359.3,0.59544]
[1737030074006,0.59543,3359.5,3359.4,0.59542]
[1737030074198,0.59543,3359.5,3359.4,1.33574432]
[1737030074399,3.2078,3359.6,3359.4,0.74032432]
[1737030074602,0.59542,3359.5,3359.4,0.59543]
[1737030074902,0.59542,3359.5,3359.4,0.74055899]
[1737030075095,0.59542,3359.5,3359.4,0.74057772]
[1737030075301,3.2078,3359.5,3359.4,0.74124835]
[1737030075510,0.5955,3359.0,3358.9,3.2078]
[1737030075710,0.5955,3359.0,3358.9,2.60295157]
[1737030076004,0.5955,3359.0,3358.9,2.00743157]
[1737030076210,0.5955,3359.0,3358.9,2.58483942]
[1737030076409,0.5955,3359.0,3358.9,2.00743157]
[1737030076709,0.5955,3359.0,3358.9,2.58490122]
[1737030076905,0.5955,3359.0,3358.9,1.31890122]
[1737030077111,0.5955,3359.0,3358.9,2.00743157]
[1737030077315,0.5955,3359.0,3358.9,2.58558876]
[1737030077704,0.5955,3359.0,3358.9,2.00743157]
[1737030077912,0.5955,3359.0,3358.9,2.58574993]
[1737030078909,2.97694,3359.7,3358.9,2.58574993]
[1737030078910,0.59548,3359.2,3358.9,2.58574993]
[1737030079213,0.59548,3359.2,3359.1,0.59547]
[1737030079411,0.9457,3359.8,3359.1,1.32229438]
[1737030079614,0.9457,3359.8,3359.2,1.32273861]
[1737030079805,1.4885,3359.6,3358.9,2.23]
[1737030080007,0.5955,3359.1,3359.0,1.91804171]
[1737030080407,0.5955,3359.1,3359.0,1.32255171]
[1737030080804,0.59549,3359.1,3359.0,1.32340584]
[1737030084114,0.59549,3359.1,3359.0,1.32265926]
[1737030084617,0.59549,3359.1,3359.0,1.32515979]
[1737030085818,0.59565,3358.2,3358.1,1.266]
[1737030086121,0.59563,3358.4,3358.1,1.266]
[1737030086314,0.59563,3358.4,3358.3,0.5956]
[1737030087415,0.59565,3358.3,3358.2,0.59564]
[1737030088310,0.59561,3358.5,3358.4,0.59559]
[1737030088715,3.2078,3358.7,3358.1,1.266]
[1737030089015,0.59564,3358.4,3358.3,0.59562]
[1737030090014,3.2078,3358.7,3358.1,1.266]
[1737030090213,3.80337,3358.7,3358.6,0.59558]
[1737030091220,3.80336,3358.7,3358.6,2.96003078]
[1737030091619,3.80336,3358.7,3358.6,0.59558]
[1737030092422,0.59553,3358.9,3358.8,0.59552]
[1737030092818,0.59553,3358.9,3358.8,1.86652]
[1737030093929,1.05882,3359.0,3358.9,0.59552]
[1737030094318,0.4633,3359.0,3358.8,1.271]
[1737030094631,0.59552,3358.9,3358.8,1.271]
[1737030094931,0.59552,3358.9,3358.8,1.86654]
[1737030095121,0.59552,3358.9,3358.8,1.271]
[1737030096224,0.4633,3359.0,3358.4,0.4725]
[1737030096430,0.59559,3358.5,3358.4,1.7435]
[1737030096626,0.59559,3358.5,3358.4,2.33911]
[1737030096820,0.59559,3358.5,3358.4,1.7435]
[1737030097132,0.59559,3358.5,3358.4,2.33911]
[1737030097431,0.59559,3358.5,3358.4,1.7435]
[1737030097621,0.59559,3358.5,3358.4,2.33911]
[1737030097826,0.59559,3358.5,3358.4,3.07142257]
[1737030098430,0.59559,3358.5,3358.4,2.47581257]
[1737030098731,0.59559,3358.5,3358.4,3.07142257]
[1737030101127,0.59559,3358.5,3358.4,2.00331257]
[1737030101627,0.59559,3358.5,3358.4,0.73231257]
[1737030103137,0.59559,3358.5,3358.4,1.32792257]
[1737030103637,1.48885,3358.9,3358.4,0.73231257]
[1737030103938,0.59558,3358.7,3358.6,0.59556]
[1737030104236,0.59558,3358.7,3358.6,1.32787257]
[1737030105335,0.59558,3358.7,3358.6,0.73231257]
[1737030107233,0.59558,3358.7,3358.6,1.32789257]
[1737030109140,0.59558,3358.7,3358.6,0.73231257]
[1737030109334,0.59558,3358.7,3358.6,0.72843169]
[1737030109938,3.80338,3358.7,3358.6,0.72843169]
[1737030112336,3.2078,3358.7,3358.3,0.59562]
[1737030112542,0.59559,3358.5,3358.4,0.35283014]
[1737030113035,0.59559,3358.5,3358.4,0.94844014]
[1737030113238,0.59559,3358.5,3358.4,0.35283014]
[1737030114441,0.59559,3358.5,3358.4,0.35297299]
[1737030115640,0.59559,3358.5,3358.4,0.94858299]
[1737030115842,0.59554,3358.9,3358.5,1.48899]
[1737030116039,0.59554,3358.9,3358.8,0.59553]
[1737030116239,0.59554,3358.9,3358.8,0.94835023]
[1737030116739,0.59554,3358.9,3358.8,1.40895023]
[1737030117842,0.59554,3358.9,3358.8,0.81342023]
[1737030118149,0.59554,3358.9,3358.8,0.35282023]
[1737030121451,0.59551,3359.0,3358.8,0.72974599]
[1737030121640,0.59559,3358.5,3358.4,0.5956]
[1737030121846,0.59559,3358.5,3358.4,1.32530973]
[1737030122748,0.59559,3358.5,3358.4,0.72970973]
[1737030122948,0.59559,3358.5,3358.4,0.7296323]
[1737030123253,3.80339,3358.5,3358.4,0.7296323]
[1737030123949,3.80339,3358.5,3358.4,0.72959368]
[1737030124146,3.2078,3358.5,3357.9,1.0409]
[1737030124456,3.80346,3358.1,3358.0,0.72728932]
[1737030126151,3.80346,3358.1,3358.0,1.32296932]
[1737030126344,3.80346,3358.1,3358.0,0.72728932]
[1737030126550,0.59566,3358.1,3358.0,1.32296932]
[1737030126849,3.2078,3358.5,3358.0,0.72728932]
[1737030127048,0.59561,3358.4,3358.3,0.59561]
[1737030127253,0.59561,3358.4,3358.3,1.32289932]
[1737030127454,3.2078,3359.0,3358.3,0.72728932]
[1737030127755,0.59558,3358.7,3358.6,0.59556]
[1737030127948,0.59558,3358.7,3358.6,1.32284932]
[1737030128550,0.59558,3358.7,3358.6,1.32241717]
[1737030128852,0.59558,3358.7,3358.6,0.72685717]
[1737030129555,0.59558,3358.7,3358.6,1.32243717]
[1737030130251,0.59558,3358.7,3358.6,0.72685717]
[1737030131150,0.59558,3358.7,3357.9,1.26]
[1737030131151,0.59568,3358.0,3357.9,1.26]
[1737030131952,0.59574,3357.7,3357.6,0.4561]
[1737030132953,3.2078,3357.9,3357.4,1.26]
[1737030133150,6.02515078,3357.9,3357.0,1.7356]
[1737030133351,0.59583,3357.2,3357.1,0.59582]
[1737030133851,6.02515078,3357.9,3357.0,1.7356]
[1737030134158,0.59584,3357.1,3357.0,2.33146]
[1737030134358,0.59584,3357.2,3357.1,0.59582]
[1737030135156,3.2078,3357.5,3357.0,4.10005078]
[1737030135463,1.48923,3358.0,3357.3,5.57225078]
[1737030135759,1.48923,3358.0,3357.5,0.59575]
[1737030135965,0.5957,3358.0,3357.9,0.59568]
[1737030136161,0.59563,3358.3,3357.9,2.36445078]
[1737030136355,0.4599,3358.6,3357.9,5.57225078]
[1737030136658,0.59567,3358.2,3358.1,0.59565]
[1737030137057,0.4599,3358.6,3358.2,0.59563]
[1737030137058,0.59564,3358.3,3358.2,0.59563]
[1737030137756,0.59558,3358.7,3358.6,0.59556]
[1737030137958,0.5955,3359.1,3359.0,0.59549]
[1737030138156,0.59548,3359.2,3359.1,0.59547]
[1737030138351,0.59548,3359.2,3359.1,0.59548]
[1737030138557,3.80325,3359.3,3359.2,0.59547]
[1737030138755,0.59543,3359.5,3359.4,0.59543]
[1737030138962,3.2078,3359.8,3359.7,0.59538]
[1737030139260,0.59527,3360.4,3360.3,0.59527]
[1737030139562,0.59525,3360.5,3360.3,2.95972078]
[1737030139952,9.36558249,3360.6,3360.1,3.2078]
[1737030140151,0.59529,3360.3,3360.1,0.5953]
[1737030140761,0.59529,3360.3,3360.0,1.26]
[1737030140762,0.59531,3360.1,3360.0,1.26]
[1737030141062,0.59541,3359.6,3359.5,1.85542]
[1737030141357,1.48826,3360.2,3359.1,4.63584784]
[1737030141358,3.2078,3360.0,3359.1,4.63584784]
[1737030141655,0.59544,3359.4,3359.2,1.26]
[1737030141856,0.59545,3359.3,3359.2,1.26]
[1737030142059,0.59545,3359.3,3359.2,1.85547]
[1737030142358,0.59545,3359.3,3359.2,1.26]
[1737030142665,0.59549,3359.1,3359.0,3.2078]
[1737030142861,0.59549,3359.1,3359.0,4.4678]
[1737030143160,0.59549,3359.1,3359.0,3.2078]
[1737030143362,3.2078,3359.2,3358.9,1.26]
[1737030143556,0.59551,3359.0,3358.9,1.26]
[1737030143755,0.59557,3358.7,3358.6,1.26]
[1737030143955,0.59557,3358.7,3358.6,1.63094055]
[1737030144158,4.6965,3359.2,3358.6,1.63094055]
[1737030144159,3.2078,3359.2,3358.6,1.62989513]
[1737030144358,0.59556,3358.7,3358.6,1.26]
[1737030144560,0.59556,3358.7,3358.6,2.22546864]
[1737030145165,0.59556,3358.7,3358.6,1.62988864]
[1737030145368,0.59556,3358.7,3358.6,1.26]
[1737030145865,3.2078,3359.2,3358.6,1.62986228]
[1737030146165,0.59556,3358.7,3358.6,1.26]
[1737030146361,3.2078,3359.2,3358.6,0.36990111]
[1737030146564,3.2078,3359.2,3358.4,5.99319299]
[1737030146565,0.59554,3358.8,3358.7,1.62990111]
[1737030146759,0.59554,3358.8,3358.7,1.26]
[1737030147461,3.2078,3359.2,3358.7,1.26]
[1737030147659,0.59552,3359.0,3358.8,0.96531267]
[1737030147869,0.59552,3359.0,3358.7,1.26]
[1737030147870,0.59553,3358.9,3358.7,1.85554]
[1737030148065,0.59553,3358.9,3358.8,0.36976498]
[1737030148261,0.59554,3358.8,3358.7,1.26]
[1737030148961,0.59554,3358.8,3358.7,2.22537708]
[1737030149162,0.59549,3359.1,3358.8,0.59552]
[1737030149364,0.59553,3358.9,3358.8,0.59553]
[1737030149671,3.80327,3359.2,3359.1,0.59549]
[1737030149871,3.2078,3359.2,3359.1,0.59549]
[1737030150065,3.2078,3359.2,3359.1,0.96521921]
[1737030150771,3.2078,3359.2,3359.1,0.96511047]
[1737030150965,3.80327,3359.2,3359.1,0.96511047]
[1737030151361,3.2078,3359.2,3359.1,0.96511047]
[1737030151761,4.69626,3359.8,3359.1,0.96511047]
[1737030151958,3.2078,3359.8,3359.2,0.36955799]
[1737030152162,3.2078,3359.8,3358.8,5.99319299]
[1737030152371,3.2078,3359.8,3358.9,0.36942407]
[1737030152568,0.59546,3359.3,3359.2,0.59546]
[1737030152763,0.59542,3359.5,3359.4,0.59542]
[1737030153070,0.5954,3359.7,3359.6,0.5954]
[1737030153270,0.5954,3359.7,3359.0,1.48877]
[1737030153271,3.2078,3359.8,3359.2,3.2078]
[1737030153481,0.59543,3359.5,3359.4,0.59543]
[1737030153683,3.2078,3359.8,3359.4,0.59543]
[1737030153684,3.2078,3359.8,3359.4,1.269]
[1737030153870,0.59542,3359.5,3359.4,1.269]
[1737030155265,0.59542,3359.5,3359.4,1.86443]
[1737030155667,0.59542,3359.5,3359.4,1.269]
[1737030158879,0.59542,3359.5,3359.4,1.86443]
[1737030159076,0.59542,3359.5,3359.4,1.269]
[1737030159575,0.59542,3359.5,3359.4,1.86443]
[1737030160571,0.59542,3359.5,3359.4,1.269]
[1737030160777,0.59542,3359.5,3359.4,1.86443]
[1737030163080,0.5954,3359.7,3359.6,0.59538]
[1737030163773,0.59542,3359.5,3359.4,2.33223]
[1737030163978,0.59542,3359.5,3359.4,2.70200072]
[1737030165874,0.4872,3360.1,3359.4,2.10657072]
[1737030166174,2.97581,3361.0,3360.2,0.59527]
[1737030166175,0.59528,3360.3,3360.2,0.59527]
[1737030166379,0.59528,3360.3,3360.2,2.23404072]
[1737030166883,0.59525,3360.6,3360.5,0.59522]
[1737030167177,0.59524,3360.5,3360.4,2.95233966]
[1737030167385,0.59524,3360.5,3360.4,3.32253449]
[1737030167775,0.59522,3360.6,3360.5,0.59522]
[1737030167970,3.2078,3360.7,3360.5,0.37015672]
[1737030168276,3.803,3360.7,3360.6,0.37015672]
[1737030168482,3.803,3360.7,3360.6,0.96537672]
[1737030170182,0.5952,3360.7,3360.6,0.96537672]
[1737030172176,0.5952,3360.7,3360.6,0.37015672]
[1737030172376,0.5952,3360.8,3360.7,0.59518]
[1737030172578,0.5952,3360.8,3360.7,0.96533672]
[1737030174187,0.59519,3360.9,3360.8,0.59517]
[1737030175083,0.59515,3361.1,3361.0,0.59514]
[1737030175385,3.2078,3361.2,3361.0,2.35709966]
[1737030175574,3.2078,3361.6,3361.2,0.59509]
[1737030175778,0.59509,3361.4,3361.3,0.59509]
[1737030175985,0.59511,3361.3,3361.2,0.5951]
[1737030176687,0.59506,3361.5,3361.4,0.59507]
[1737030176888,3.2078,3361.6,3361.3,2.35709966]
[1737030177089,0.59508,3361.5,3361.3,2.35709966]
[1737030177387,0.59506,3361.5,3361.4,0.59508]
[1737030177582,3.2078,3361.6,3361.3,2.35709966]
[1737030178187,3.2078,3361.6,3361.4,1.268]
[1737030178380,3.80286,3361.6,3361.5,0.59506]
[1737030178576,3.2078,3361.6,3361.5,0.59506]
[1737030178787,3.2078,3362.0,3361.7,0.59502]
[1737030178979,0.59501,3361.8,3361.7,0.59502]
[1737030179184,3.2078,3362.0,3361.7,0.59502]
[1737030179389,0.59502,3361.8,3361.7,0.59502]
[1737030179583,0.59501,3361.9,3361.8,0.595]
[1737030179779,0.59498,3362.0,3361.6,2.35709966]
[1737030179983,0.59498,3362.0,3361.9,0.59497]
[1737030180183,3.2078,3362.4,3361.9,0.59497]
[1737030180184,3.2078,3362.4,3361.9,2.35709966]
[1737030180388,0.59492,3362.3,3362.0,1.05836]
[1737030180585,0.59495,3362.2,3362.1,1.268]
[1737030180789,0.59493,3362.3,3362.2,0.59493]
[1737030180988,0.59494,3362.2,3362.1,1.86295]
[1737030181586,0.59494,3362.2,3362.1,1.268]
[1737030182283,1.48737,3362.2,3361.6,3.43432966]
[1737030182487,0.59497,3362.0,3361.9,1.256]
[1737030182684,0.9798,3362.3,3361.9,3.61309966]
[1737030182885,0.59495,3362.2,3362.1,0.59494]
[1737030183087,0.9798,3362.3,3361.9,3.61309966]
[1737030183290,0.59496,3362.2,3362.1,0.59494]
[1737030184094,3.6961,3362.8,3361.9,3.61309966]
[1737030184294,0.59492,3362.3,3362.2,2.95203966]
[1737030184796,5.66452,3362.8,3362.3,0.5949]
[1737030184797,0.59492,3362.4,3362.3,0.5949]
[1737030185189,0.59492,3362.3,3362.2,2.95202966]
[1737030185389,3.2078,3362.4,3361.9,2.35709966]
[1737030185586,0.59499,3362.0,3361.9,2.95207966]
[1737030185788,3.2078,3362.4,3361.9,3.61309966]
[1737030185990,0.59495,3362.2,3362.1,0.59493]
[1737030186386,3.2078,3362.4,3362.0,2.35709966]
[1737030186589,0.5949,3362.4,3362.3,2.95200966]
[1737030187195,0.5949,3362.4,3362.3,2.35709966]
[1737030187398,0.5949,3362.4,3362.3,2.95201966]
[1737030187798,0.5949,3362.4,3362.3,2.35709966]
[1737030188102,3.2078,3362.8,3362.3,2.35709966]
[1737030188287,3.80257,3363.2,3362.7,3.2078]
[1737030188492,3.2078,3363.6,3363.1,2.35709966]
[1737030188691,3.2078,3363.6,3363.5,2.35709966]
[1737030188887,3.2078,3363.6,3363.5,4.20780966]
[1737030188888,3.80249,3363.6,3363.5,4.20780966]
[1737030189091,0.59469,3363.6,3363.5,4.20780966]
[1737030189288,0.59469,3363.6,3363.5,1.256]
[1737030189591,0.59474,3363.3,3363.2,2.95185966]
[1737030189900,0.59474,3363.3,3363.2,3.61309966]
[1737030190296,0.59474,3363.3,3363.2,4.20785966]
[1737030190797,0.59474,3363.3,3363.2,2.95185966]
[1737030191003,0.59474,3363.3,3363.2,4.20785966]
[1737030191194,0.59474,3363.3,3363.2,3.61309966]
[1737030192094,0.59474,3363.3,3363.2,2.35709966]
[1737030192495,0.4556,3363.5,3363.2,2.35709966]
[1737030192796,3.2078,3364.8,3363.4,3.2078]
[1737030192995,3.2078,3364.8,3364.6,2.35709966]
[1737030192996,3.6607,3364.8,3364.6,2.35709966]
[1737030193299,3.6607,3364.8,3364.3,2.35709966]
[1737030193499,0.59455,3364.4,3364.3,2.35709966]
[1737030193690,0.59453,3364.5,3364.4,0.59454]
[1737030193896,0.59451,3364.7,3364.5,0.59452]
[1737030194197,0.59451,3364.7,3364.2,4.4638]
[1737030194198,0.4462,3365.1,3364.6,5.56489966]
[1737030194396,0.5945,3364.7,3364.6,3.2078]
[1737030195007,0.59458,3364.2,3364.1,5.56489966]
[1737030195293,0.59458,3364.2,3364.1,3.2078]
[1737030195700,0.59466,3363.8,3363.7,3.61309966]
[1737030195891,0.59466,3363.8,3363.7,1.85067]
[1737030196095,0.59466,3363.8,3363.7,4.20776966]
[1737030196290,0.59466,3363.8,3363.7,3.61309966]
[1737030196697,0.4582,3364.4,3363.7,4.20776966]
[1737030197003,0.4582,3364.4,3363.8,0.59465]
[1737030197303,0.59464,3363.9,3363.8,0.59465]
[1737030197504,0.4582,3364.4,3363.7,3.61309966]
[1737030197707,0.59466,3363.8,3363.7,4.20775966]
[1737030198202,0.59457,3364.3,3363.7,4.20775966]
[1737030198406,0.59466,3363.9,3363.7,4.20775966]
[1737030198704,0.4582,3364.4,3363.7,4.20775966]
[1737030198905,0.59466,3363.8,3363.7,4.20775966]
[1737030199094,0.59466,3363.8,3363.7,3.61309966]
[1737030199698,0.4582,3364.4,3363.6,3.2078]
[1737030199906,0.59474,3363.3,3363.2,3.2078]
[1737030201103,0.59474,3363.3,3363.2,5.56489966]
[1737030201306,0.59474,3363.4,3363.3,0.59474]
[1737030201507,0.59469,3363.6,3363.2,5.56489966]
[1737030201703,0.59469,3363.6,3363.5,2.95180966]
[1737030201901,1.95644,3364.3,3363.5,2.35709966]
[1737030202105,2.42134,3364.3,3363.7,3.2078]
[1737030202307,2.42134,3364.3,3363.8,0.59465]
[1737030202506,2.42134,3364.3,3363.7,3.2078]
[1737030202706,0.59466,3363.8,3363.7,3.2078]
[1737030203312,1.48651,3364.2,3363.3,0.4695]
[1737030203313,1.48651,3364.1,3363.3,3.2078]
[1737030203608,0.59472,3363.5,3363.4,2.95182966]
[1737030203807,0.59472,3363.5,3363.4,5.56489966]
[1737030204104,0.59472,3363.5,3363.4,3.2078]
[1737030204312,0.59471,3363.6,3363.5,0.5947]
[1737030204514,0.59471,3363.6,3363.5,0.59471]
[1737030204807,0.59468,3363.7,3363.6,0.59469]
[1737030205013,0.5947,3363.6,3363.5,0.59471]
[1737030205416,0.59471,3363.5,3363.4,6.15961966]
[1737030205806,0.59468,3363.7,3363.6,0.59468]
[1737030206317,0.4649,3364.0,3363.6,1.255]
[1737030206605,1.05953,3364.0,3363.9,0.59464]
[1737030207006,0.4649,3364.0,3363.9,0.59464]
[1737030207207,0.59463,3364.0,3363.9,0.59462]
[1737030207814,3.2078,3364.3,3363.8,3.2078]
[1737030208010,3.80238,3364.3,3364.2,0.59458]
[1737030208311,0.4801,3364.4,3363.8,3.2078]
[1737030208507,0.5946,3364.2,3364.0,0.59462]
[1737030208713,1.07467,3364.4,3364.3,0.59457]
[1737030209306,0.4801,3364.4,3364.3,0.59457]
[1737030209615,0.59456,3364.4,3364.3,0.59455]
[1737030210020,0.59454,3364.5,3364.4,0.59453]
[1737030210520,0.59445,3365.0,3364.9,0.59444]
[1737030210820,0.59446,3364.9,3364.8,0.59447]
[1737030211016,0.59445,3365.0,3364.9,0.59444]
[1737030211721,0.59446,3364.9,3364.8,3.2078]
[1737030212020,0.59446,3364.9,3364.8,3.80228]
[1737030212209,0.59446,3364.9,3364.8,3.2078]
[1737030213319,0.59446,3364.9,3364.8,3.80228]
[1737030213725,0.59445,3365.1,3365.0,0.59443]
[1737030214015,0.59446,3364.9,3364.8,3.2078]
[1737030214623,2.9049749,3365.2,3364.8,3.2078]
[1737030214821,0.59446,3365.0,3364.9,0.59445]
[1737030215020,0.59444,3365.1,3365.0,0.59443]
[1737030215224,2.9049749,3365.2,3364.8,3.2078]
[1737030215419,0.59444,3365.1,3365.0,0.59443]
[1737030216217,2.9049749,3365.2,3364.8,3.2078]
[1737030216423,2.9049749,3365.2,3365.1,0.59443]
[1737030216919,2.9049749,3365.2,3365.1,0.96204379]
[1737030217220,2.51983867,3365.2,3365.1,1.20199327]
[1737030217421,2.25241283,3365.2,3365.1,1.65159327]
[1737030217621,0.26742584,3365.2,3365.1,1.65159327]
[1737030217932,0.5,3366.0,3365.9,0.59428]
[1737030218219,0.5,3366.0,3365.8,3.2078]
[1737030218423,0.59435,3365.5,3365.4,3.2078]
[1737030218617,0.59452,3364.6,3364.4,3.2078]
[1737030218819,5.56489966,3365.7,3364.4,3.2078]
[1737030218820,2.83813747,3365.2,3364.4,3.2078]
[1737030219027,0.59446,3364.9,3364.8,3.80226]
[1737030219221,0.59446,3364.9,3364.5,0.59452]
[1737030219520,0.59455,3364.4,3364.3,1.04416]
[1737030219720,0.59457,3364.3,3364.2,5.07137]
[1737030220025,0.59457,3364.3,3364.2,3.2078]
[1737030220415,0.59457,3364.3,3364.2,3.80238]
[1737030221020,0.59457,3364.3,3364.2,3.2078]
[1737030222229,0.59457,3364.3,3364.2,3.80238]
[1737030222526,0.59457,3364.3,3364.2,3.2078]
[1737030222726,0.59457,3364.3,3364.2,3.80238]
[1737030223431,0.59457,3364.3,3364.2,3.2078]
[1737030224131,0.59457,3364.3,3364.2,3.80238]
[1737030224327,0.59455,3364.5,3364.4,0.59454]
[1737030224531,0.59451,3364.7,3364.6,0.59451]
[1737030224730,4.69395,3365.0,3364.4,2.35709966]
[1737030224936,0.59456,3364.4,3364.3,0.59456]
[1737030225225,0.59457,3364.3,3364.2,3.80237]
[1737030225631,0.59455,3364.5,3364.4,0.59454]
[1737030225831,0.59457,3364.3,3364.2,3.80238]
[1737030226426,0.59457,3364.3,3364.2,3.2078]
[1737030226627,1.9683,3364.9,3364.2,3.2078]
[1737030226826,0.59454,3364.5,3364.4,2.95162966]
[1737030227230,0.59451,3364.7,3364.6,0.5945]
[1737030227529,1.07658,3364.9,3364.8,0.59448]
[1737030228035,0.4572,3365.1,3364.5,0.485]
[1737030228335,0.4572,3365.1,3364.6,0.59451]
[1737030228336,0.59451,3364.7,3364.6,0.59451]
[1737030228531,0.4572,3365.1,3364.5,0.485]
[1737030228730,0.59451,3364.6,3364.5,0.485]
[1737030229336,0.59451,3364.6,3364.5,1.07953]
[1737030229642,0.59451,3364.6,3364.5,0.485]
[1737030229833,0.59451,3364.6,3364.5,1.07953]
[1737030230132,1.94328,3365.1,3364.2,3.80238]
[1737030230133,0.59457,3364.3,3364.2,3.80238]
[1737030230629,0.59457,3364.3,3364.2,3.2078]
[1737030230830,0.59457,3364.3,3364.2,3.80238]
[1737030231030,3.2078,3364.6,3364.1,0.4608]
[1737030231239,0.59464,3363.9,3363.8,3.2078]
[1737030231928,0.59469,3363.6,3363.5,0.4821]
[1737030232132,0.59473,3363.4,3363.3,3.2078]
[1737030232434,0.59476,3363.2,3363.1,2.95186966]
[1737030232628,1.48669,3363.7,3363.1,2.35709966]
[1737030232629,2.46139,3363.7,3363.1,2.35709966]
[1737030232839,0.9747,3363.7,3363.1,2.35709966]
[1737030233029,0.59469,3363.6,3363.5,0.5947]
[1737030233228,0.4902,3363.7,3362.9,0.4772]
[1737030233430,1.48691,3363.2,3362.5,1.269]
[1737030233630,0.59487,3362.6,3362.5,1.269]
[1737030234128,0.59487,3362.6,3362.5,1.86387]
[1737030234333,3.2078,3364.3,3362.5,4.4768]
[1737030234634,0.59468,3363.7,3363.6,0.59469]
[1737030234937,0.59468,3363.7,3363.6,0.59468]
[1737030235137,0.59466,3363.8,3363.7,0.59467]
[1737030235341,1.3972,3364.2,3363.4,3.2078]
[1737030235530,0.59461,3364.1,3364.0,0.5946]
[1737030235729,1.3972,3364.2,3363.8,3.2078]
[1737030235932,0.59461,3364.1,3364.0,0.59462]
[1737030236138,0.59463,3364.0,3363.9,0.59463]
[1737030236326,1.3972,3364.2,3363.8,3.2078]
[1737030236532,1.06019,3364.2,3364.1,0.5946]
[1737030236730,0.9735,3364.7,3364.3,0.59456]
[1737030237038,1.4268,3364.7,3364.2,3.2078]
[1737030237438,0.59457,3364.3,3364.2,3.80238]
[1737030238043,1.4268,3364.7,3364.2,3.2078]
[1737030238239,0.59457,3364.3,3364.2,3.2078]
[1737030239044,0.59456,3364.4,3364.3,0.59455]
[1737030239241,0.59457,3364.3,3364.2,3.80238]
[1737030239540,0.59457,3364.3,3364.2,3.2078]
[1737030240038,6.12088,3364.7,3363.9,5.07143]
[1737030240039,0.59462,3364.0,3363.9,5.07143]
[1737030240228,0.59462,3364.0,3363.9,5.07144]
[1737030240432,0.59462,3364.0,3363.9,4.4768]
[1737030240640,0.59462,3364.0,3363.9,5.07144]
[1737030240834,0.59462,3364.0,3363.9,3.2078]
[1737030241439,0.59469,3363.6,3363.5,3.2078]
[1737030242344,0.9278,3363.9,3363.1,3.2078]
[1737030242647,0.59476,3363.3,3363.2,0.59475]
[1737030243143,0.59476,3363.2,3363.1,3.80257]
[1737030243338,0.9278,3363.9,3363.1,3.80257]
[1737030243339,0.9278,3363.9,3363.1,3.2078]
[1737030243546,0.59476,3363.2,3363.1,3.2078]
[1737030243741,0.59476,3363.2,3363.1,6.7349729]
[1737030243937,0.59469,3363.7,3363.2,0.59476]
[1737030244243,0.59474,3363.3,3363.2,3.80255]
[1737030244434,0.59474,3363.3,3363.2,3.2078]
[1737030246746,3.2078,3363.5,3362.7,0.4653]
[1737030246944,0.59483,3362.8,3362.7,0.4653]
[1737030247342,0.59489,3362.5,3362.4,4.5038]
[1737030248044,0.59489,3362.5,3362.4,5.0987]
[1737030248246,0.59489,3362.5,3362.4,4.5038]
[1737030248445,0.59489,3362.5,3362.4,3.2078]
[1737030248640,1.96503,3363.4,3362.4,4.5038]
[1737030248843,0.5948,3363.1,3363.0,0.59479]
[1737030249341,0.5948,3363.1,3362.9,0.4569]
[1737030249342,0.4865,3363.6,3362.9,35.8334]
[1737030249548,0.5948,3363.0,3362.9,0.9334]
[1737030250345,0.59481,3362.9,3362.8,3.2078]
[1737030250544,0.59481,3363.0,3362.9,0.5948]
[1737030250741,1.48678,3363.5,3362.8,3.2078]
[1737030250941,0.5948,3363.1,3363.0,0.59479]
[1737030251539,0.59471,3363.6,3363.5,0.5947]
[1737030251752,0.59471,3363.6,3363.5,3.8025]
[1737030252049,0.4905,3364.0,3363.5,6.1401929]
[1737030252348,0.4905,3364.5,3363.9,3.2078]
[1737030252544,0.59454,3364.5,3364.4,3.80234]
[1737030252852,0.59454,3364.5,3364.4,3.2078]
[1737030253149,0.59454,3364.5,3364.0,2.229]
[1737030253150,1.48619,3364.9,3364.0,5.4368]
[1737030253355,0.5946,3364.1,3364.0,4.9496]
[1737030253648,2.9323929,3364.8,3363.6,4.5038]
[1737030253838,0.59467,3363.7,3363.6,5.57258]
[1737030254646,1.4865,3364.2,3363.6,4.9779]
[1737030255041,0.59467,3363.7,3363.6,4.9779]
[1737030255552,0.59467,3363.7,3363.6,5.57259]
[1737030255852,0.59467,3363.8,3363.7,0.59466]
[1737030256947,0.4806,3364.3,3364.0,0.59461]
[1737030256948,0.59462,3364.1,3364.0,0.59461]
[1737030257145,0.59462,3364.1,3364.0,3.2078]
[1737030257748,0.59462,3364.1,3364.0,3.80242]
[1737030258053,0.59454,3364.5,3364.4,0.59453]
[1737030258255,0.59454,3364.5,3364.4,3.80233]
[1737030258748,1.94965,3365.0,3364.5,0.59452]
[1737030258956,1.94965,3365.0,3364.7,0.59447]
[1737030258957,0.59449,3364.8,3364.7,0.59447]
[1737030259252,1.48598,3365.3,3364.5,0.4661]
[1737030259453,0.59447,3364.9,3364.8,3.80226]
[1737030259846,0.59447,3364.9,3364.8,3.2078]
[1737030260046,0.59447,3364.9,3364.8,3.80228]
[1737030260252,0.59447,3364.9,3364.8,3.79919084]
[1737030260451,0.59447,3364.9,3364.8,3.20471084]
[1737030261451,0.59447,3364.9,3363.6,2.7827]